Cogmind - Beta 10.2 @@@ ROGUE MODE // 2020.11.19 @ 13:39:57 // Halloween2020/ForbiddenLore Player: Agave Result: Destroyed by as-20217 with Assembled Blade Performance ------------- Evolutions (0) 0 Regions Visited (2) 400 Robots Destroyed (15) 75 Value Destroyed (302) 302 Prototype IDs (0) 0 Alien Tech Used (0) 0 Bonus (0) 0 TOTAL SCORE: 777 Bonus ------- None Cogmind --------- Core Integrity 0/250 Matter 199/300 Energy 58/100 System Corruption 0% Temperature Cool (0) Movement Walking (210) Ox3 Location -10/Mines Parts ------- > --- POWER (1) -------- (None) > --- PROPULSION (2) --- Aluminum Leg > --- UTILITY (2) ------ High-capacity Storage Unit Hacking Suite > --- WEAPON (2) ------- Light Assault Rifle > --- INVENTORY (12) --- Small Matter Pod (0) Signal Interpreter Salvage Targeting Computer Salvage Targeting Computer Shield Generator Mining Laser Peak State ------------ > --- POWER ------------ Light Ion Engine > --- PROPULSION ------- Light Treads Light Treads > --- UTILITY ---------- High-capacity Storage Unit Hacking Suite > --- WEAPON ----------- Small Laser Light Assault Rifle > --- INVENTORY -------- Aluminum Leg Aluminum Leg Signal Interpreter Salvage Targeting Computer Salvage Targeting Computer Shield Generator Grenade Launcher [Rating: 10] Favorites ----------- Power Light Ion Engine Engine Light Ion Engine Propulsion Light Treads Treads Light Treads Leg Aluminum Leg Utility Hacking Suite Storage High-capacity Storage Unit Hackware Hacking Suite Weapon EM Pulse Gun Energy Gun EM Pulse Gun Ballistic Gun Light Assault Rifle Launcher Grenade Launcher Build | -11 -10 -10 ------- Run | Scr Mat Min Slots Evolved . | . . . Power . | . . . Propulsion . | . . . Utility . | . . . Weapon . | . . . Parts Attached 19 | 5 8 6 Power 3 | . 2 1 Engine 3 | . 2 1 Core . | . . . Reactor . | . . . Propulsion 4 | 2 . 2 Treads 2 | 2 . . Leg 2 | . . 2 Wheel . | . . . Hover . | . . . Flight . | . . . Utility 3 | 1 2 . Device . | . . . Storage 2 | 1 1 . Processor . | . . . Hackware 1 | . 1 . Protection . | . . . Artifact . | . . . Weapon 9 | 2 4 3 Energy Gun 4 | 2 1 1 Energy Cannon . | . . . Ballistic Gun 3 | . 1 2 Ballistic Cannon . | . . . Launcher 2 | . 2 . Special Weapon . | . . . Impact Weapon . | . . . Slashing Weapon . | . . . Piercing Weapon . | . . . Special Melee Weapon . | . . . Unidentified Prototypes . | . . . Parts Lost 11 | . 3 8 Power 2 | . 1 1 Propulsion 3 | . . 3 Utility . | . . . Weapon 6 | . 2 4 Highest Loss Streak 8 | . 3 8 Average Slot Usage (%) 95 | . 94 98 Engine 13 | . 13 13 Treads 27 | . 28 27 Storage 14 | . 14 14 Hackware 12 | . 11 14 Energy Gun 10 | . 16 . Ballistic Gun 8 | . 5 14 Launcher 7 | . 4 13 Naked Turns . | . . . Heaviest Build 39 | 8 39 39 Greatest Support 40 | 40 40 40 Greatest Overweight (x) 3 | 1 . 3 Average Overweight (x) . | . . . Largest Inventory Capacity 12 | 6 12 12 Average Capacity 9 | 5 8 12 Most Carried 11 | 5 9 11 Average Carried 5 | 1 3 10 Final Capacity 12 | 6 12 12 Final Carried 9 | 2 9 6 Class Distribution -------------------- 100% | Mutant Dominant Class ---------------- Mutant | -10/Materials Mutant | -10/Mines Resources | -11 -10 -10 ----------- Run | Scr Mat Min Matter Collected 367 | 250 77 40 Remotely . | . . . Salvage Created 292 | 97 149 46 Parts 29 | . 21 8 Haulers Intercepted . | . . . Recyclers Shooed . | . . . Parts Field Recycled . | . . . Retrieved Matter . | . . . Parts Self-Destructed . | . . . Prevented . | . . . Kills | -11 -10 -10 ------- Run | Scr Mat Min Combat Hostiles Destroyed 15 | . 8 7 Guns 4 | . . 4 AOE 11 | . 8 3 Classes Destroyed 6 | 1 4 1 Recycler 1 | 1 . . Operator 1 | . 1 . Watcher 2 | . 2 . Swarmer 9 | . 6 3 Grunt 2 | . 2 . Assembled 4 | . . 4 Best Kill Streak 4 | 1 3 4 Combat Bots Only 4 | . 3 4 Max Kills in Single Turn 3 | 1 3 3 Gunslinging . | . . . Exploded 3 | . 3 3 Melee . | . . . Uniques/NPCs Destroyed . | . . . Combat | -11 -10 -10 -------- Run | Scr Mat Min Damage Taken 1290 | 27 384 879 Core 272 | . 58 214 Absorbed by Shields . | . . . Core Remaining (%) 100 | 100 . . Volleys Fired 37 | 3 17 17 Largest 2 | 2 2 2 Hottest 80 | 80 80 50 Shots Fired 52 | 6 25 21 Gun 41 | 6 17 18 Cannon . | . . . Launcher 11 | . 8 3 Special . | . . . Kinetic 18 | . . 18 Thermal 3 | . 3 . Explosive 11 | . 8 3 Electromagnetic 20 | 6 14 . Robot Hit Streak 14 | 3 14 4 Robot Miss Streak 4 | 2 4 3 Penetration Max . | . . . Secondary Targets . | . . . Shots Hit Robots 33 | 4 17 12 Core Hits 32 | 1 15 16 Critical Hits . | . . . Critical Kills . | . . . Critical Parts Destroyed . | . . . Melee Attacks . | . . . Impact . | . . . Slashing . | . . . Piercing . | . . . Sneak Attacks . | . . . Combat Hostiles . | . . . Follow-up Attacks . | . . . Damage Inflicted 1209 | 74 725 410 Guns 304 | 28 186 90 Cannons . | . . . Explosions 905 | 46 539 320 Melee . | . . . Ramming . | . . . Kinetic 90 | . . 90 Thermal 103 | 46 57 . Explosive 802 | . 482 320 Electromagnetic 214 | 28 186 . Impact . | . . . Slashing . | . . . Piercing . | . . . Highest Corruption . | . . . Average Corruption . | . . . Corruption Purged . | . . . Overload Shots . | . . . Overflow Damage 69 | . 62 7 Projectiles . | . . . Explosions 69 | . 62 7 Melee . | . . . Knockbacks . | . . . Impact . | . . . Kinetic . | . . . Secondary . | . . . Self-Inflicted Damage 318 | 27 277 14 Shots 6 | 1 4 1 Rammed . | . . . Targets Rammed . | . . . Kicked . | . . . Crushed . | . . . Highest Temperature 36 | 21 36 20 Average Temperature 13 | 9 14 10 Received Heat Transfer 12 | . 12 . Siege Activations . | . . . Robots Corrupted . | . . . Combat Hostiles . | . . . Parts Fried 1 | . 1 . Impact Corruptions . | . . . Robots Melted . | . . . Combat Hostiles . | . . . Parts Melted . | . . . Heat Transferred 50 | . 50 . Parts Sabotaged . | . . . Parts Stolen . | . . . Parts Stripped . | . . . Power Chain Reactions 3 | 1 2 . Missiles Intercepted . | . . . Alert | -11 -10 -10 ------- Run | Scr Mat Min Peak Influence 328 | 5 328 152 Initial 82 | . 3 82 Average 124 | 1 127 146 Maximum Alert Level 1 | . 1 . Low Security (%) 85 | 100 76 100 Level 1 14 | . 23 . Level 2 . | . . . Level 3 . | . . . Level 4 . | . . . Level 5 . | . . . High Security . | . . . Max Security . | . . . Squads Dispatched 4 | . 4 . Investigation 2 | . 2 . Extermination . | . . . Reinforcement 2 | . 2 . Assault . | . . . Garrison . | . . . Intercept . | . . . Construction Impeded . | . . . Haulers Reinforced . | . . . Stealth | -11 -10 -10 --------- Run | Scr Mat Min Distress Signals . | . . . Communications Jammed . | . . . Distress Signals . | . . . Times Spotted 37 | . 14 23 Peak Tracking Total 17 | . 3 17 Tactical Retreats . | . . . Traps | -11 -10 -10 ------- Run | Scr Mat Min Traps Triggered 1 | . 1 . Indirectly . | . . . Trap Hack Attempts . | . . . Triggered . | . . . Disarmed . | . . . Reprogrammed . | . . . Reused . | . . . Traps Extracted . | . . . Installed . | . . . Triggered . | . . . Machines | -11 -10 -10 ---------- Run | Scr Mat Min Machines Disabled 10 | . 10 . Max in Single Turn 3 | . 3 . Machines Sabotaged . | . . . Garrisons Compromised . | . . . Overloaded Fab Kills . | . . . Fab Network Shutdowns . | . . . Hacking | -11 -10 -10 --------- Run | Scr Mat Min Machines Accessed 6 | . 6 . Terminals 5 | . 5 . Fabricators . | . . . Repair Stations . | . . . Recycling Units 1 | . 1 . Scanalyzers . | . . . Garrison Access . | . . . Total Hacks 23 | . 23 . Successful 14 | . 14 . Failed 9 | . 9 . Catastrophic 4 | . 4 . Database Lockouts . | . . . Manual 11 | . 11 . Terminals 21 | . 21 . Fabricators . | . . . Repair Stations . | . . . Recycling Units 2 | . 2 . Scanalyzers . | . . . Garrison Access . | . . . Terminal Hacks 7 | . 7 . Branch Access Points 1 | . 1 . Emergency Access Points 1 | . 1 . Alert Level 1 | . 1 . Recall Reinforcements 1 | . 1 . Registered Components 1 | . 1 . Zone Layout 2 | . 2 . Fabricator Hacks . | . . . Repair Station Hacks . | . . . Recycling Unit Hacks 2 | . 2 . Report Inventory 1 | . 1 . Retrieve Components 1 | . 1 . Scanalyzer . | . . . Garrison Access Hacks . | . . . Unauthorized Hacks 5 | . 5 . Terminals 5 | . 5 . Track 2 | . 2 . Botnet 3 | . 3 . Fabricators . | . . . Repair Stations . | . . . Recycling Units . | . . . Scanalyzers . | . . . Garrison Access . | . . . Data Cores Recovered . | . . . Used . | . . . Hacking Detections 6 | . 6 . Full Trace Events 1 | . 1 . Feedback Events . | . . . Feedback Blocked . | . . . Robot Schematics Acquired . | . . . Robots Built . | . . . Matter . | . . . Time . | . . . Total Robot Build Rating . | . . . Part Schematics Acquired . | . . . Parts Built . | . . . Matter . | . . . Time . | . . . Total Part Build Rating . | . . . Parts Repaired . | . . . Time . | . . . Parts Recycled . | . . . Recycled Matter . | . . . Retrieved Matter . | . . . Retrieved Components 1 | . 1 . Parts Scanalyzed . | . . . Part Schematics Acquired . | . . . Parts Damaged . | . . . Bothacking | -11 -10 -10 ------------ Run | Scr Mat Min Used RIF Installer . | . . . Robots Hacked . | . . . Non-combat . | . . . Combat . | . . . Robot Hacks Applied . | . . . Relay Couplers Released . | . . . Robots Rewired . | . . . Allies Hacked . | . . . Hacks Repelled . | . . . Allies | -11 -10 -10 -------- Run | Scr Mat Min Total Allies . | . . . Largest Group . | . . . Highest-Rated Group . | . . . Highest-Rated Ally . | . . . Total Orders . | . . . Ally Attacks . | . . . Total Damage . | . . . Kills . | . . . Allies Corrupted . | . . . Allies Melted . | . . . Intel | -11 -10 -10 ------- Run | Scr Mat Min Robot Analysis Total . | . . . Derelict Logs Recovered 1 | . . 1 Drone Launches . | . . . Drone Recoveries . | . . . Exploration | -11 -10 -10 ------------- Run | Scr Mat Min Turns Passed 1083 | 82 648 353 Spaces Moved 586 | 48 361 177 Core 23 | 23 . . Treads 561 | 25 361 175 Legs 2 | . . 2 Wheels . | . . . Hover . | . . . Flight . | . . . Fastest Speed 50 | 50 160 160 Average Speed 157 | 126 160 160 Slowest Speed 210 | 160 160 210 Overloaded Moves . | . . . Propulsion Burnouts . | . . . Robots Hopped . | . . . Cave-ins Triggered . | . . . Exploration Rate (%) 27 | 4 50 29 Regions Visited 2 Branch Regions 1 Pre-discovered Areas . | . . . Known Exits Taken 1 | . 1 . Unknown Exits Taken 1 | 1 . . Scrap Searched . | . . . Spaces Dug 6 | . 6 . Terrain Destroyed 123 | 1 107 15 Melee . | . . . Projectile . | . . . AOE 123 | 1 107 15 Terrain Rammed . | . . . Walls Destroyed . | . . . Machines Disabled . | . . . Actions | -11 -10 -10 --------- Run | Scr Mat Min Total 699 | 64 406 229 Wait 33 | . 8 25 Move 584 | 47 360 177 Hop . | . . . Pick Up 23 | 8 12 3 Fast Attach . | . . . Attach 15 | 5 5 5 Detach . | . . . Swap 4 | . 3 1 Drop 3 | 1 1 1 Fire 37 | 3 17 17 Melee . | . . . Ram . | . . . Kick . | . . . Crush . | . . . Escape Stasis . | . . . Rewire . | . . . Trap . | . . . Miscellaneous . | . . . Route ------- -11/Scrapyard -10/Materials (discovered 2 exits: [*Mat] / *Min) -10/Mines History --------- Turn | Location | Event 27 | -11/Scrapyard | Discovered new exit (range 15) 83 | -11/Scrapyard | Entered Materials 207 | -10/Materials | Identified exit to Mines 303 | -10/Materials | Build established: Mutant 360 | -10/Materials | Lost 3 parts (1p2w) 464 | -10/Materials | Discovered new exit (range 16) 731 | -10/Materials | Entered Mines 975 | -10/Mines | Learned Materials terminal intel 1058 | -10/Mines | Assembled infested the area 1073 | -10/Mines | Core integrity fell below 50% 1083 | -10/Mines | Core integrity fell below 20% 1084 | -10/Mines | Destroyed by as-20217 with Assembled Blade Last Messages --------------- squad. 01060_ K-01 Serf collects debris. 01064_ as-66066 destroyed. 01064_ as-01414 destroyed. 01064_ Destroyed Asb. Hover Unit. 01064_ as-42635 destroyed. 01066_ K-01 Serf collects debris. 01067_ as-50286 destroyed. 01069_ U-05 Engineer destroyed. 01070_ Grenade Launcher destroyed. 01071_ as-64573 destroyed. 01072_ The unstable cave ceiling collapses. 01073_ Lgt. Treads destroyed. 01076_ Lgt. Ion Engine destroyed. 01076_ Lgt. Assault Rifle destroyed. 01079_ Knocked back. 01079_ Aluminum Leg destroyed. 01080_ Lgt. Assault Rifle destroyed. 01081_ as-02095 destroyed. 01084_ Sml. Laser destroyed. Map ----- +----------------------------------------------------+ | | | ?????????????????????????????????????????????????? | | ?????????????????????????????????????????????????? | | ?????????????????????????????????????????????????? | | ?????????????????????????????????????????????????? | | ?????????????????????????????????????????????????? | | ?????????????????????????????????????????????????? | | ????????????????????????????????????? ???????????? | | ???????????????????????????????????? ???????????? | | ??????????????????####?????????????? ???????????? | | ??????????????????# ##???????????? ????????????? | | ??????????????????# #???????????? #????????????? | | ??????????????????# #??????????? #####????????? | | ??????????????????# ##??????????? #????????? | | ??????????????????# #??????????? ##????????? | | ??????????????????# #???????????aa #????????? | | ??????????????????# #?????????? #????????? | | ################### ##?????#### a #?????????? | | ## k####?## % #???????????? | | ############### k ### a #######??????? | | #?????????????## ## a |! ???? | | #?????????????## ### a a =%* ???? | | #?????????????# #?## a % =########??????? | | #?????????????# ##??# a #????????????? | | ####??????????# #??## aa #????????????? | | ##?????????# #### @a ## #????????????? | | ###???????# ##?! #????????????? | | ##??????# #### #####???=#????????????? | | #??????# #??# ##????????#????????????? | | #??????# #??# ##??????????????????????? | | #??????# #??## ##???????????????????????? | | ###??????# #???#####????????????????????????? | | "" ##????????# #????????????????????????????????? | | "" #?????????# #????????????????????????????????? | | "" #?????????# #????????????????????????????????? | | ##?????????# #????????????????????????????????? | | ####??????????# #????????????????????????????????? | | ??????????????? ?????????????????????????????????? | | ???????????????#?????????????????????????????????? | | ?????????????????????????????????????????????????? | | ?????????????????????????????????????????????????? | | ?????????????????????????????????????????????????? | | ?????????????????????????????????????????????????? | | ?????????????????????????????????????????????????? | | ?????????????????????????????????????????????????? | | ?????????????????????????????????????????????????? | | ?????????????????????????????????????????????????? | | ?????????????????????????????????????????????????? | | ?????????????????????????????????????????????????? | | ?????????????????????????????????????????????????? | +----------------------------------------------------+ Best States ------------- Heat Dissipation 25 Energy Generation 10 Energy Capacity 125 Matter Stores 300 Matter Capacity 300 Sight Range 16 Terrain Scan Density 10 Evasion (%) 40 Recoil Reduction 2 Offensive Hacking 10 Item Schematics ----------------- None Robot Schematics ------------------ None Fabricated ------------ Nothing Alien Tech Used ----------------- None Achievements -------------- None Challenges ------------ None Game ------ Seed ShadingCompositeStick Manual? 0 Play Time 00:20:29 Cumulative 61.9 hours Start 2020.11.19 @ 13:21:02 End 2020.11.19 @ 13:39:57 Sessions 1 Manual Loads 0 Difficulty Rogue Special Mode Halloween2020/ForbiddenLore Game No. 80 Rogue 80 Adventurer 0 Explorer 0 Win Type - Total 0 Types 0/0/0/0/0/0/0/0/0 Lore% 16 Gallery% 32 Achievement% 22 Wizard Run 0 Options --------- ASCII 0 Keyboard 0 Movement Mouse Keybinds 0 Fullscreen 1 Font 18/SmallcapsGlow Map View 76x50 Tactical HUD 1 Map Filters NONE Filters NONE Steam 1 RUN: 436f2ba9-1f22-40d9-88c7-1038640aa9a1